{"text_format":"1","workbook":"xlsx","n_sheets":3,"sheets":["Produktionsanlæg","Distributionsanlæg","Fællesfunktionsanlæg"],"not_rendered":{"charts":0,"images":0,"macros":1,"external_links":0,"defined_names":2,"comments":0,"pivot_tables":0},"unopened":[],"bounds":{"document_bytes":16777216,"sheet_cells":100000,"rows_first":2000,"rows_last":500,"rows_between":2000,"halvings":0,"cell_chars":16384,"cell_head_chars":4096},"cells_cut":0,"cells_raw":0,"read":"whole","date_system":"1900"}

{"sheet":"Produktionsanlæg","index":0,"n_rows":552,"n_cols":9,"rows_kept":552,"cut":false,"hidden":false,"merged":[[0,0,1,0],[0,1,1,1],[0,2,1,2],[0,3,1,3],[0,8,1,8],[0,4,1,4],[0,5,1,5],[0,6,1,6],[0,7,1,7]]}
["Produktionsanlæg","Enhed","Standard-levetid","Samlet mængde per 31/12-2022","Samlet mængde per 31/12-2023","Samlet mængde per 31/12-2024","Afvigelse 2022-2023","Afvigelse 2023-2024","Bemærkninger"]
[]
["Renseanlæg 1",null,null,null,null,null,{"$f":"IF(D3=\"\",IF(E3>0,\"Ny data\",IF(E3=\"\",\"\",0)),IF(D3=0,IF(E3=0,0,\"Ny data\"),(E3-D3)/D3))","v":""},{"$f":"IF(E3=\"\",IF(F3>0,\"Ny data\",IF(F3=\"\",\"\",0)),IF(E3=0,IF(F3=0,0,\"Ny data\"),(F3-E3)/E3))","v":""}]
["Mindre renseanlæg",null,null,null,null,null,"",""]
["Mindre renseanlæg < 5.000 PE","PE",40,0,0,0,0,0]
["Renseanlæg >= 5.000 PE, Vandbehandling",null,null,null,null,null,"",""]
["Indløb med riste, Konstruktioner","PE",60,125000,125000,125000,0,0]
["Indløb med riste, Mek/EL","PE",20,125000,125000,125000,0,0]
["Indløb med riste, SRO","PE",10,125000,125000,125000,0,0]
["Sand- og fedtfang, Kontruktioner","PE",60,125000,125000,125000,0,0]
["Sand- og fedtfang, Mek/EL","PE",20,125000,125000,125000,0,0]
["Sand- og fedtfang, SRO","PE",10,125000,125000,125000,0,0]
["Forklaring, Konstruktioner","PE",60,0,0,0,0,0]
["Forklaring, Mek/EL","PE",20,0,0,0,0,0]
["Forklaring, SRO","PE",10,0,0,0,0,0]
["Beluftningstanke, Konstruktioner","PE",60,125000,125000,125000,0,0]
["Beluftningstanke, Mek/EL","PE",20,125000,125000,125000,0,0]
["Beluftningstanke, SRO","PE",10,125000,125000,125000,0,0]
["Efterklaringstanke, Konstruktioner","PE",60,125000,125000,125000,0,0]
["Efterklaringstanke, Mek/El","PE",20,125000,125000,125000,0,0]
["Efterklaringstanke, SRO","PE",10,125000,125000,125000,0,0]
["Efterbehandlingsanlæg (sandfilter), Konstruktioner","PE",60,0,0,0,0,0]
["Efterbehandlingsanlæg (sandfilter), Mek/EL","PE",20,0,0,0,0,0]
["Efterbehandlingsanlæg (sandfilter), SRO","PE",10,0,0,0,0,0]
["Renseanlæg >= 5.000 PE, Slambehandling",null,null,null,null,null,"",""]
["Forafvanding, slam, Konstruktion","PE",60,0,0,0,0,0]
["Forafvanding, slam, Mek/EL","PE",20,0,0,0,0,0]
["Forafvanding, slam, SRO","PE",10,0,0,0,0,0]
["Rådnetanke, slam, Konstruktioner","PE",60,71500,71500,71500,0,0]
["Rådnetanke, slam, Mek/EL","PE",20,0,0,0,0,0]
["Rådnetanke, slam, SRO","PE",10,0,0,0,0,0]
["Gasdisponering, Konstruktioner","PE",60,71500,71500,71500,0,0]
["Gasdisponering, Mek/EL","PE",20,0,0,0,0,0]
["Gasdisponering, SRO","PE",10,0,0,0,0,0]
["Gasdisponering - elproduktionsanlæg, Konstruktioner","PE",60,71500,71500,71500,0,0]
["Gasdisponering - elproduktionsanlæg, Mek/EL","PE",20,71500,71500,71500,0,0]
["Gasdisponering - elproduktionsanlæg, SRO","PE",10,0,0,0,0,0]
["Gasrensning - Aktivt kulfilter","m3/t",15,0,0,0,0,0]
["Gasrensning - Biologisk skrubber","m3/t",15,0,0,0,0,0]
["Opgraderingsanlæg - Membran","m3/t",15,0,0,0,0,0]
["Varmeproduktionsanlæg","m3/t",15,0,0,0,0,0]
["Slutafvanding, slam - lavteknologisk (slambede), Konstruktioner","PE",60,0,0,0,0,0]
["Slutafvanding, slam - lavteknologisk (slambede), Mek/EL","PE",20,0,0,0,0,0]
["Slutafvanding, slam - lavteknologisk (slambede), SRO","PE",10,0,0,0,0,0]
["Slutafvanding, slam - højteknologisk (centrifuger), Konstruktioner","PE",60,71500,71500,71500,0,0]
["Slutafvanding, slam - højteknologisk (centrifuger), Mek/El","PE",20,71500,71500,71500,0,0]
["Slutafvanding, slam - højteknologisk (centrifuger), SRO","PE",10,71500,71500,71500,0,0]
["Renseanlæg >= 5.000 PE, Slamdisponering",null,null,null,null,null,"",""]
["Slutdisponering, slam - lavteknologisk (slammineralisering), Konstruktioner","PE",60,0,0,0,0,0]
["Slutdisponering, slam - lavteknologisk (slammineralisering), Mek/EL","PE",20,0,0,0,0,0]
["Slutdisponering, slam - lavteknologisk (slammineralisering), SRO","PE",10,0,0,0,0,0]
["Slutdisponering, slam - højteknologisk (slamtørring), Konstruktioner","PE",60,0,0,0,0,0]
["Slutdisponering, slam - højteknologisk (slamtørring), Mek/EL","PE",20,0,0,0,0,0]
["Slutdisponering, slam - højteknologisk (slamtørring), SRO","PE",10,0,0,0,0,0]
["Slutdisponering, slam - højteknologisk (slamtørring og -forbrænding), Konstruktioner","PE",60,0,0,0,0,0]
["Slutdisponering, slam - højteknologisk (slamtørring og -forbrænding), Mek/EL","PE",20,0,0,0,0,0]
["Slutdisponering, slam - højteknologisk (slamtørring og -forbrænding), SRO","PE",10,0,0,0,0,0]
["Renseanlæg 2",null,null,null,null,null,"",""]
["Mindre renseanlæg",null,null,null,null,null,"",""]
["Mindre renseanlæg < 5.000 PE","PE",40,0,0,0,0,0]
["Renseanlæg >= 5.000 PE, Vandbehandling",null,null,null,null,null,"",""]
["Indløb med riste, Konstruktioner","PE",60,0,0,0,0,0]
["Indløb med riste, Mek/EL","PE",20,0,0,0,0,0]
["Indløb med riste, SRO","PE",10,0,0,0,0,0]
["Sand- og fedtfang, Kontruktioner","PE",60,0,0,0,0,0]
["Sand- og fedtfang, Mek/EL","PE",20,0,0,0,0,0]
["Sand- og fedtfang, SRO","PE",10,0,0,0,{"$f":"IF(D67=\"\",IF(E67>0,\"Ny data\",IF(E67=\"\",\"\",0)),IF(D67=0,IF(E67=0,0,\"Ny data\"),(E67-D67)/D67))","v":0},{"$f":"IF(E67=\"\",IF(F67>0,\"Ny data\",IF(F67=\"\",\"\",0)),IF(E67=0,IF(F67=0,0,\"Ny data\"),(F67-E67)/E67))","v":0}]
["Forklaring, Konstruktioner","PE",60,0,0,0,0,0]
["Forklaring, Mek/EL","PE",20,0,0,0,0,0]
["Forklaring, SRO","PE",10,0,0,0,0,0]
["Beluftningstanke, Konstruktioner","PE",60,0,0,0,0,0]
["Beluftningstanke, Mek/EL","PE",20,0,0,0,0,0]
["Beluftningstanke, SRO","PE",10,0,0,0,0,0]
["Efterklaringstanke, Konstruktioner","PE",60,0,0,0,0,0]
["Efterklaringstanke, Mek/El","PE",20,0,0,0,0,0]
["Efterklaringstanke, SRO","PE",10,0,0,0,0,0]
["Efterbehandlingsanlæg (sandfilter), Konstruktioner","PE",60,0,0,0,0,0]
["Efterbehandlingsanlæg (sandfilter), Mek/EL","PE",20,0,0,0,0,0]
["Efterbehandlingsanlæg (sandfilter), SRO","PE",10,0,0,0,0,0]
["Renseanlæg >= 5.000 PE, Slambehandling",null,null,null,null,null,"",""]
["Forafvanding, slam, Konstruktion","PE",60,0,0,0,0,0]
["Forafvanding, slam, Mek/EL","PE",20,0,0,0,0,0]
["Forafvanding, slam, SRO","PE",10,0,0,0,0,0]
["Rådnetanke, slam, Konstruktioner","PE",60,0,0,0,0,0]
["Rådnetanke, slam, Mek/EL","PE",20,0,0,0,0,0]
["Rådnetanke, slam, SRO","PE",10,0,0,0,0,0]
["Gasdisponering, Konstruktioner","PE",60,0,0,0,0,0]
["Gasdisponering, Mek/EL","PE",20,0,0,0,0,0]
["Gasdisponering, SRO","PE",10,0,0,0,0,0]
["Gasdisponering - elproduktionsanlæg, Konstruktioner","PE",60,0,0,0,0,0]
["Gasdisponering - elproduktionsanlæg, Mek/EL","PE",20,0,0,0,0,0]
["Gasdisponering - elproduktionsanlæg, SRO","PE",10,0,0,0,0,0]
["Gasrensning - Aktivt kulfilter","m3/t",15,0,0,0,0,0]
["Gasrensning - Biologisk skrubber","m3/t",15,0,0,0,0,0]
["Opgraderingsanlæg - Membran","m3/t",15,0,0,0,0,0]
["Varmeproduktionsanlæg","m3/t",15,0,0,0,0,0]
["Slutafvanding, slam - lavteknologisk (slambede), Konstruktioner","PE",60,0,0,0,0,0]
["Slutafvanding, slam - lavteknologisk (slambede), Mek/EL","PE",20,0,0,0,0,0]
["Slutafvanding, slam - lavteknologisk (slambede), SRO","PE",10,0,0,0,0,0]
["Slutafvanding, slam - højteknologisk (centrifuger), Konstruktioner","PE",60,0,0,0,0,0]
["Slutafvanding, slam - højteknologisk (centrifuger), Mek/El","PE",20,0,0,0,0,0]
["Slutafvanding, slam - højteknologisk (centrifuger), SRO","PE",10,0,0,0,0,0]
["Renseanlæg >= 5.000 PE, Slamdisponering",null,null,null,null,null,"",""]
["Slutdisponering, slam - lavteknologisk (slammineralisering), Konstruktioner","PE",60,0,0,0,0,0]
["Slutdisponering, slam - lavteknologisk (slammineralisering), Mek/EL","PE",20,0,0,0,0,0]
["Slutdisponering, slam - lavteknologisk (slammineralisering), SRO","PE",10,0,0,0,0,0]
["Slutdisponering, slam - højteknologisk (slamtørring), Konstruktioner","PE",60,0,0,0,0,0]
["Slutdisponering, slam - højteknologisk (slamtørring), Mek/EL","PE",20,0,0,0,0,0]
["Slutdisponering, slam - højteknologisk (slamtørring), SRO","PE",10,0,0,0,0,0]
["Slutdisponering, slam - højteknologisk (slamtørring og -forbrænding), Konstruktioner","PE",60,0,0,0,0,0]
["Slutdisponering, slam - højteknologisk (slamtørring og -forbrænding), Mek/EL","PE",20,0,0,0,0,0]
["Slutdisponering, slam - højteknologisk (slamtørring og -forbrænding), SRO","PE",10,0,0,0,0,0]
["Renseanlæg 3",null,null,null,null,null,"",""]
["Mindre renseanlæg",null,null,null,null,null,"",""]
["Mindre renseanlæg < 5.000 PE","PE",40,0,0,0,0,0]
["Renseanlæg >= 5.000 PE, Vandbehandling",null,null,null,null,null,"",""]
["Indløb med riste, Konstruktioner","PE",60,0,0,0,0,0]
["Indløb med riste, Mek/EL","PE",20,0,0,0,0,0]
["Indløb med riste, SRO","PE",10,0,0,0,0,0]
["Sand- og fedtfang, Kontruktioner","PE",60,0,0,0,0,0]
["Sand- og fedtfang, Mek/EL","PE",20,0,0,0,0,0]
["Sand- og fedtfang, SRO","PE",10,0,0,0,0,0]
["Forklaring, Konstruktioner","PE",60,0,0,0,0,0]
["Forklaring, Mek/EL","PE",20,0,0,0,0,0]
["Forklaring, SRO","PE",10,0,0,0,0,0]
["Beluftningstanke, Konstruktioner","PE",60,0,0,0,0,0]
["Beluftningstanke, Mek/EL","PE",20,0,0,0,0,0]
["Beluftningstanke, SRO","PE",10,0,0,0,0,0]
["Efterklaringstanke, Konstruktioner","PE",60,0,0,0,0,0]
["Efterklaringstanke, Mek/El","PE",20,0,0,0,0,0]
["Efterklaringstanke, SRO","PE",10,0,0,0,{"$f":"IF(D131=\"\",IF(E131>0,\"Ny data\",IF(E131=\"\",\"\",0)),IF(D131=0,IF(E131=0,0,\"Ny data\"),(E131-D131)/D131))","v":0},{"$f":"IF(E131=\"\",IF(F131>0,\"Ny data\",IF(F131=\"\",\"\",0)),IF(E131=0,IF(F131=0,0,\"Ny data\"),(F131-E131)/E131))","v":0}]
["Efterbehandlingsanlæg (sandfilter), Konstruktioner","PE",60,0,0,0,0,0]
["Efterbehandlingsanlæg (sandfilter), Mek/EL","PE",20,0,0,0,0,0]
["Efterbehandlingsanlæg (sandfilter), SRO","PE",10,0,0,0,0,0]
["Renseanlæg >= 5.000 PE, Slambehandling",null,null,null,null,null,"",""]
["Forafvanding, slam, Konstruktion","PE",60,0,0,0,0,0]
["Forafvanding, slam, Mek/EL","PE",20,0,0,0,0,0]
["Forafvanding, slam, SRO","PE",10,0,0,0,0,0]
["Rådnetanke, slam, Konstruktioner","PE",60,0,0,0,0,0]
["Rådnetanke, slam, Mek/EL","PE",20,0,0,0,0,0]
["Rådnetanke, slam, SRO","PE",10,0,0,0,0,0]
["Gasdisponering, Konstruktioner","PE",60,0,0,0,0,0]
["Gasdisponering, Mek/EL","PE",20,0,0,0,0,0]
["Gasdisponering, SRO","PE",10,0,0,0,0,0]
["Gasdisponering - elproduktionsanlæg, Konstruktioner","PE",60,0,0,0,0,0]
["Gasdisponering - elproduktionsanlæg, Mek/EL","PE",20,0,0,0,0,0]
["Gasdisponering - elproduktionsanlæg, SRO","PE",10,0,0,0,0,0]
["Gasrensning - Aktivt kulfilter","m3/t",15,0,0,0,0,0]
["Gasrensning - Biologisk skrubber","m3/t",15,0,0,0,0,0]
["Opgraderingsanlæg - Membran","m3/t",15,0,0,0,0,0]
["Varmeproduktionsanlæg","m3/t",15,0,0,0,0,0]
["Slutafvanding, slam - lavteknologisk (slambede), Konstruktioner","PE",60,0,0,0,0,0]
["Slutafvanding, slam - lavteknologisk (slambede), Mek/EL","PE",20,0,0,0,0,0]
["Slutafvanding, slam - lavteknologisk (slambede), SRO","PE",10,0,0,0,0,0]
["Slutafvanding, slam - højteknologisk (centrifuger), Konstruktioner","PE",60,0,0,0,0,0]
["Slutafvanding, slam - højteknologisk (centrifuger), Mek/El","PE",20,0,0,0,0,0]
["Slutafvanding, slam - højteknologisk (centrifuger), SRO","PE",10,0,0,0,0,0]
["Renseanlæg >= 5.000 PE, Slamdisponering",null,null,null,null,null,"",""]
["Slutdisponering, slam - lavteknologisk (slammineralisering), Konstruktioner","PE",60,0,0,0,0,0]
["Slutdisponering, slam - lavteknologisk (slammineralisering), Mek/EL","PE",20,0,0,0,0,0]
["Slutdisponering, slam - lavteknologisk (slammineralisering), SRO","PE",10,0,0,0,0,0]
["Slutdisponering, slam - højteknologisk (slamtørring), Konstruktioner","PE",60,0,0,0,0,0]
["Slutdisponering, slam - højteknologisk (slamtørring), Mek/EL","PE",20,0,0,0,0,0]
["Slutdisponering, slam - højteknologisk (slamtørring), SRO","PE",10,0,0,0,0,0]
["Slutdisponering, slam - højteknologisk (slamtørring og -forbrænding), Konstruktioner","PE",60,0,0,0,0,0]
["Slutdisponering, slam - højteknologisk (slamtørring og -forbrænding), Mek/EL","PE",20,0,0,0,0,0]
["Slutdisponering, slam - højteknologisk (slamtørring og -forbrænding), SRO","PE",10,0,0,0,0,0]
["Renseanlæg 4",null,null,null,null,null,"",""]
["Mindre renseanlæg",null,null,null,null,null,"",""]
["Mindre renseanlæg < 5.000 PE","PE",40,0,0,0,0,0]
["Renseanlæg >= 5.000 PE, Vandbehandling",null,null,null,null,null,"",""]
["Indløb med riste, Konstruktioner","PE",60,0,0,0,0,0]
["Indløb med riste, Mek/EL","PE",20,0,0,0,0,0]
["Indløb med riste, SRO","PE",10,0,0,0,0,0]
["Sand- og fedtfang, Kontruktioner","PE",60,0,0,0,0,0]
["Sand- og fedtfang, Mek/EL","PE",20,0,0,0,0,0]
["Sand- og fedtfang, SRO","PE",10,0,0,0,0,0]
["Forklaring, Konstruktioner","PE",60,0,0,0,0,0]
["Forklaring, Mek/EL","PE",20,0,0,0,0,0]
["Forklaring, SRO","PE",10,0,0,0,0,0]
["Beluftningstanke, Konstruktioner","PE",60,0,0,0,0,0]
["Beluftningstanke, Mek/EL","PE",20,0,0,0,0,0]
["Beluftningstanke, SRO","PE",10,0,0,0,0,0]
["Efterklaringstanke, Konstruktioner","PE",60,0,0,0,0,0]
["Efterklaringstanke, Mek/El","PE",20,0,0,0,0,0]
["Efterklaringstanke, SRO","PE",10,0,0,0,0,0]
["Efterbehandlingsanlæg (sandfilter), Konstruktioner","PE",60,0,0,0,0,0]
["Efterbehandlingsanlæg (sandfilter), Mek/EL","PE",20,0,0,0,0,0]
["Efterbehandlingsanlæg (sandfilter), SRO","PE",10,0,0,0,0,0]
["Renseanlæg >= 5.000 PE, Slambehandling",null,null,null,null,null,"",""]
["Forafvanding, slam, Konstruktion","PE",60,0,0,0,0,0]
["Forafvanding, slam, Mek/EL","PE",20,0,0,0,0,0]
["Forafvanding, slam, SRO","PE",10,0,0,0,0,0]
["Rådnetanke, slam, Konstruktioner","PE",60,0,0,0,0,0]
["Rådnetanke, slam, Mek/EL","PE",20,0,0,0,{"$f":"IF(D195=\"\",IF(E195>0,\"Ny data\",IF(E195=\"\",\"\",0)),IF(D195=0,IF(E195=0,0,\"Ny data\"),(E195-D195)/D195))","v":0},{"$f":"IF(E195=\"\",IF(F195>0,\"Ny data\",IF(F195=\"\",\"\",0)),IF(E195=0,IF(F195=0,0,\"Ny data\"),(F195-E195)/E195))","v":0}]
["Rådnetanke, slam, SRO","PE",10,0,0,0,0,0]
["Gasdisponering, Konstruktioner","PE",60,0,0,0,0,0]
["Gasdisponering, Mek/EL","PE",20,0,0,0,0,0]
["Gasdisponering, SRO","PE",10,0,0,0,0,0]
["Gasdisponering - elproduktionsanlæg, Konstruktioner","PE",60,0,0,0,0,0]
["Gasdisponering - elproduktionsanlæg, Mek/EL","PE",20,0,0,0,0,0]
["Gasdisponering - elproduktionsanlæg, SRO","PE",10,0,0,0,0,0]
["Gasrensning - Aktivt kulfilter","m3/t",15,0,0,0,0,0]
["Gasrensning - Biologisk skrubber","m3/t",15,0,0,0,0,0]
["Opgraderingsanlæg - Membran","m3/t",15,0,0,0,0,0]
["Varmeproduktionsanlæg","m3/t",15,0,0,0,0,0]
["Slutafvanding, slam - lavteknologisk (slambede), Konstruktioner","PE",60,0,0,0,0,0]
["Slutafvanding, slam - lavteknologisk (slambede), Mek/EL","PE",20,0,0,0,0,0]
["Slutafvanding, slam - lavteknologisk (slambede), SRO","PE",10,0,0,0,0,0]
["Slutafvanding, slam - højteknologisk (centrifuger), Konstruktioner","PE",60,0,0,0,0,0]
["Slutafvanding, slam - højteknologisk (centrifuger), Mek/El","PE",20,0,0,0,0,0]
["Slutafvanding, slam - højteknologisk (centrifuger), SRO","PE",10,0,0,0,0,0]
["Renseanlæg >= 5.000 PE, Slamdisponering",null,null,null,null,null,"",""]
["Slutdisponering, slam - lavteknologisk (slammineralisering), Konstruktioner","PE",60,0,0,0,0,0]
["Slutdisponering, slam - lavteknologisk (slammineralisering), Mek/EL","PE",20,0,0,0,0,0]
["Slutdisponering, slam - lavteknologisk (slammineralisering), SRO","PE",10,0,0,0,0,0]
["Slutdisponering, slam - højteknologisk (slamtørring), Konstruktioner","PE",60,0,0,0,0,0]
["Slutdisponering, slam - højteknologisk (slamtørring), Mek/EL","PE",20,0,0,0,0,0]
["Slutdisponering, slam - højteknologisk (slamtørring), SRO","PE",10,0,0,0,0,0]
["Slutdisponering, slam - højteknologisk (slamtørring og -forbrænding), Konstruktioner","PE",60,0,0,0,0,0]
["Slutdisponering, slam - højteknologisk (slamtørring og -forbrænding), Mek/EL","PE",20,0,0,0,0,0]
["Slutdisponering, slam - højteknologisk (slamtørring og -forbrænding), SRO","PE",10,0,0,0,0,0]
["Renseanlæg 5",null,null,null,null,null,"",""]
["Mindre renseanlæg",null,null,null,null,null,"",""]
["Mindre renseanlæg < 5.000 PE","PE",40,0,0,0,0,0]
["Renseanlæg >= 5.000 PE, Vandbehandling",null,null,null,null,null,"",""]
["Indløb med riste, Konstruktioner","PE",60,0,0,0,0,0]
["Indløb med riste, Mek/EL","PE",20,0,0,0,0,0]
["Indløb med riste, SRO","PE",10,0,0,0,0,0]
["Sand- og fedtfang, Kontruktioner","PE",60,0,0,0,0,0]
["Sand- og fedtfang, Mek/EL","PE",20,0,0,0,0,0]
["Sand- og fedtfang, SRO","PE",10,0,0,0,0,0]
["Forklaring, Konstruktioner","PE",60,0,0,0,0,0]
["Forklaring, Mek/EL","PE",20,0,0,0,0,0]
["Forklaring, SRO","PE",10,0,0,0,0,0]
["Beluftningstanke, Konstruktioner","PE",60,0,0,0,0,0]
["Beluftningstanke, Mek/EL","PE",20,0,0,0,0,0]
["Beluftningstanke, SRO","PE",10,0,0,0,0,0]
["Efterklaringstanke, Konstruktioner","PE",60,0,0,0,0,0]
["Efterklaringstanke, Mek/El","PE",20,0,0,0,0,0]
["Efterklaringstanke, SRO","PE",10,0,0,0,0,0]
["Efterbehandlingsanlæg (sandfilter), Konstruktioner","PE",60,0,0,0,0,0]
["Efterbehandlingsanlæg (sandfilter), Mek/EL","PE",20,0,0,0,0,0]
["Efterbehandlingsanlæg (sandfilter), SRO","PE",10,0,0,0,0,0]
["Renseanlæg >= 5.000 PE, Slambehandling",null,null,null,null,null,"",""]
["Forafvanding, slam, Konstruktion","PE",60,0,0,0,0,0]
["Forafvanding, slam, Mek/EL","PE",20,0,0,0,0,0]
["Forafvanding, slam, SRO","PE",10,0,0,0,0,0]
["Rådnetanke, slam, Konstruktioner","PE",60,0,0,0,0,0]
["Rådnetanke, slam, Mek/EL","PE",20,0,0,0,0,0]
["Rådnetanke, slam, SRO","PE",10,0,0,0,0,0]
["Gasdisponering, Konstruktioner","PE",60,0,0,0,0,0]
["Gasdisponering, Mek/EL","PE",20,0,0,0,0,0]
["Gasdisponering, SRO","PE",10,0,0,0,0,0]
["Gasdisponering - elproduktionsanlæg, Konstruktioner","PE",60,0,0,0,0,0]
["Gasdisponering - elproduktionsanlæg, Mek/EL","PE",20,0,0,0,0,0]
["Gasdisponering - elproduktionsanlæg, SRO","PE",10,0,0,0,0,0]
["Gasrensning - Aktivt kulfilter","m3/t",15,0,0,0,0,0]
["Gasrensning - Biologisk skrubber","m3/t",15,0,0,0,{"$f":"IF(D259=\"\",IF(E259>0,\"Ny data\",IF(E259=\"\",\"\",0)),IF(D259=0,IF(E259=0,0,\"Ny data\"),(E259-D259)/D259))","v":0},{"$f":"IF(E259=\"\",IF(F259>0,\"Ny data\",IF(F259=\"\",\"\",0)),IF(E259=0,IF(F259=0,0,\"Ny data\"),(F259-E259)/E259))","v":0}]
["Opgraderingsanlæg - Membran","m3/t",15,0,0,0,0,0]
["Varmeproduktionsanlæg","m3/t",15,0,0,0,0,0]
["Slutafvanding, slam - lavteknologisk (slambede), Konstruktioner","PE",60,0,0,0,0,0]
["Slutafvanding, slam - lavteknologisk (slambede), Mek/EL","PE",20,0,0,0,0,0]
["Slutafvanding, slam - lavteknologisk (slambede), SRO","PE",10,0,0,0,0,0]
["Slutafvanding, slam - højteknologisk (centrifuger), Konstruktioner","PE",60,0,0,0,0,0]
["Slutafvanding, slam - højteknologisk (centrifuger), Mek/El","PE",20,0,0,0,0,0]
["Slutafvanding, slam - højteknologisk (centrifuger), SRO","PE",10,0,0,0,0,0]
["Renseanlæg >= 5.000 PE, Slamdisponering",null,null,null,null,null,"",""]
["Slutdisponering, slam - lavteknologisk (slammineralisering), Konstruktioner","PE",60,0,0,0,0,0]
["Slutdisponering, slam - lavteknologisk (slammineralisering), Mek/EL","PE",20,0,0,0,0,0]
["Slutdisponering, slam - lavteknologisk (slammineralisering), SRO","PE",10,0,0,0,0,0]
["Slutdisponering, slam - højteknologisk (slamtørring), Konstruktioner","PE",60,0,0,0,0,0]
["Slutdisponering, slam - højteknologisk (slamtørring), Mek/EL","PE",20,0,0,0,0,0]
["Slutdisponering, slam - højteknologisk (slamtørring), SRO","PE",10,0,0,0,0,0]
["Slutdisponering, slam - højteknologisk (slamtørring og -forbrænding), Konstruktioner","PE",60,0,0,0,0,0]
["Slutdisponering, slam - højteknologisk (slamtørring og -forbrænding), Mek/EL","PE",20,0,0,0,0,0]
["Slutdisponering, slam - højteknologisk (slamtørring og -forbrænding), SRO","PE",10,0,0,0,0,0]
["Renseanlæg 6",null,null,null,null,null,"",""]
["Mindre renseanlæg",null,null,null,null,null,"",""]
["Mindre renseanlæg < 5.000 PE","PE",40,0,0,0,0,0]
["Renseanlæg >= 5.000 PE, Vandbehandling",null,null,null,null,null,"",""]
["Indløb med riste, Konstruktioner","PE",60,0,0,0,0,0]
["Indløb med riste, Mek/EL","PE",20,0,0,0,0,0]
["Indløb med riste, SRO","PE",10,0,0,0,0,0]
["Sand- og fedtfang, Kontruktioner","PE",60,0,0,0,0,0]
["Sand- og fedtfang, Mek/EL","PE",20,0,0,0,0,0]
["Sand- og fedtfang, SRO","PE",10,0,0,0,0,0]
["Forklaring, Konstruktioner","PE",60,0,0,0,0,0]
["Forklaring, Mek/EL","PE",20,0,0,0,0,0]
["Forklaring, SRO","PE",10,0,0,0,0,0]
["Beluftningstanke, Konstruktioner","PE",60,0,0,0,0,0]
["Beluftningstanke, Mek/EL","PE",20,0,0,0,0,0]
["Beluftningstanke, SRO","PE",10,0,0,0,0,0]
["Efterklaringstanke, Konstruktioner","PE",60,0,0,0,0,0]
["Efterklaringstanke, Mek/El","PE",20,0,0,0,0,0]
["Efterklaringstanke, SRO","PE",10,0,0,0,0,0]
["Efterbehandlingsanlæg (sandfilter), Konstruktioner","PE",60,0,0,0,0,0]
["Efterbehandlingsanlæg (sandfilter), Mek/EL","PE",20,0,0,0,0,0]
["Efterbehandlingsanlæg (sandfilter), SRO","PE",10,0,0,0,0,0]
["Renseanlæg >= 5.000 PE, Slambehandling",null,null,null,null,null,"",""]
["Forafvanding, slam, Konstruktion","PE",60,0,0,0,0,0]
["Forafvanding, slam, Mek/EL","PE",20,0,0,0,0,0]
["Forafvanding, slam, SRO","PE",10,0,0,0,0,0]
["Rådnetanke, slam, Konstruktioner","PE",60,0,0,0,0,0]
["Rådnetanke, slam, Mek/EL","PE",20,0,0,0,0,0]
["Rådnetanke, slam, SRO","PE",10,0,0,0,0,0]
["Gasdisponering, Konstruktioner","PE",60,0,0,0,0,0]
["Gasdisponering, Mek/EL","PE",20,0,0,0,0,0]
["Gasdisponering, SRO","PE",10,0,0,0,0,0]
["Gasdisponering - elproduktionsanlæg, Konstruktioner","PE",60,0,0,0,0,0]
["Gasdisponering - elproduktionsanlæg, Mek/EL","PE",20,0,0,0,0,0]
["Gasdisponering - elproduktionsanlæg, SRO","PE",10,0,0,0,0,0]
["Gasrensning - Aktivt kulfilter","m3/t",15,0,0,0,0,0]
["Gasrensning - Biologisk skrubber","m3/t",15,0,0,0,0,0]
["Opgraderingsanlæg - Membran","m3/t",15,0,0,0,0,0]
["Varmeproduktionsanlæg","m3/t",15,0,0,0,0,0]
["Slutafvanding, slam - lavteknologisk (slambede), Konstruktioner","PE",60,0,0,0,0,0]
["Slutafvanding, slam - lavteknologisk (slambede), Mek/EL","PE",20,0,0,0,0,0]
["Slutafvanding, slam - lavteknologisk (slambede), SRO","PE",10,0,0,0,0,0]
["Slutafvanding, slam - højteknologisk (centrifuger), Konstruktioner","PE",60,0,0,0,0,0]
["Slutafvanding, slam - højteknologisk (centrifuger), Mek/El","PE",20,0,0,0,0,0]
["Slutafvanding, slam - højteknologisk (centrifuger), SRO","PE",10,0,0,0,0,0]
["Renseanlæg >= 5.000 PE, Slamdisponering",null,null,null,null,null,{"$f":"IF(D323=\"\",IF(E323>0,\"Ny data\",IF(E323=\"\",\"\",0)),IF(D323=0,IF(E323=0,0,\"Ny data\"),(E323-D323)/D323))","v":""},{"$f":"IF(E323=\"\",IF(F323>0,\"Ny data\",IF(F323=\"\",\"\",0)),IF(E323=0,IF(F323=0,0,\"Ny data\"),(F323-E323)/E323))","v":""}]
["Slutdisponering, slam - lavteknologisk (slammineralisering), Konstruktioner","PE",60,0,0,0,0,0]
["Slutdisponering, slam - lavteknologisk (slammineralisering), Mek/EL","PE",20,0,0,0,0,0]
["Slutdisponering, slam - lavteknologisk (slammineralisering), SRO","PE",10,0,0,0,0,0]
["Slutdisponering, slam - højteknologisk (slamtørring), Konstruktioner","PE",60,0,0,0,0,0]
["Slutdisponering, slam - højteknologisk (slamtørring), Mek/EL","PE",20,0,0,0,0,0]
["Slutdisponering, slam - højteknologisk (slamtørring), SRO","PE",10,0,0,0,0,0]
["Slutdisponering, slam - højteknologisk (slamtørring og -forbrænding), Konstruktioner","PE",60,0,0,0,0,0]
["Slutdisponering, slam - højteknologisk (slamtørring og -forbrænding), Mek/EL","PE",20,0,0,0,0,0]
["Slutdisponering, slam - højteknologisk (slamtørring og -forbrænding), SRO","PE",10,0,0,0,0,0]
["Renseanlæg 7",null,null,null,null,null,"",""]
["Mindre renseanlæg",null,null,null,null,null,"",""]
["Mindre renseanlæg < 5.000 PE","PE",40,0,0,0,0,0]
["Renseanlæg >= 5.000 PE, Vandbehandling",null,null,null,null,null,"",""]
["Indløb med riste, Konstruktioner","PE",60,0,0,0,0,0]
["Indløb med riste, Mek/EL","PE",20,0,0,0,0,0]
["Indløb med riste, SRO","PE",10,0,0,0,0,0]
["Sand- og fedtfang, Kontruktioner","PE",60,0,0,0,0,0]
["Sand- og fedtfang, Mek/EL","PE",20,0,0,0,0,0]
["Sand- og fedtfang, SRO","PE",10,0,0,0,0,0]
["Forklaring, Konstruktioner","PE",60,0,0,0,0,0]
["Forklaring, Mek/EL","PE",20,0,0,0,0,0]
["Forklaring, SRO","PE",10,0,0,0,0,0]
["Beluftningstanke, Konstruktioner","PE",60,0,0,0,0,0]
["Beluftningstanke, Mek/EL","PE",20,0,0,0,0,0]
["Beluftningstanke, SRO","PE",10,0,0,0,0,0]
["Efterklaringstanke, Konstruktioner","PE",60,0,0,0,0,0]
["Efterklaringstanke, Mek/El","PE",20,0,0,0,0,0]
["Efterklaringstanke, SRO","PE",10,0,0,0,0,0]
["Efterbehandlingsanlæg (sandfilter), Konstruktioner","PE",60,0,0,0,0,0]
["Efterbehandlingsanlæg (sandfilter), Mek/EL","PE",20,0,0,0,0,0]
["Efterbehandlingsanlæg (sandfilter), SRO","PE",10,0,0,0,0,0]
["Renseanlæg >= 5.000 PE, Slambehandling",null,null,null,null,null,"",""]
["Forafvanding, slam, Konstruktion","PE",60,0,0,0,0,0]
["Forafvanding, slam, Mek/EL","PE",20,0,0,0,0,0]
["Forafvanding, slam, SRO","PE",10,0,0,0,0,0]
["Rådnetanke, slam, Konstruktioner","PE",60,0,0,0,0,0]
["Rådnetanke, slam, Mek/EL","PE",20,0,0,0,0,0]
["Rådnetanke, slam, SRO","PE",10,0,0,0,0,0]
["Gasdisponering, Konstruktioner","PE",60,0,0,0,0,0]
["Gasdisponering, Mek/EL","PE",20,0,0,0,0,0]
["Gasdisponering, SRO","PE",10,0,0,0,0,0]
["Gasdisponering - elproduktionsanlæg, Konstruktioner","PE",60,0,0,0,0,0]
["Gasdisponering - elproduktionsanlæg, Mek/EL","PE",20,0,0,0,0,0]
["Gasdisponering - elproduktionsanlæg, SRO","PE",10,0,0,0,0,0]
["Gasrensning - Aktivt kulfilter","m3/t",15,0,0,0,0,0]
["Gasrensning - Biologisk skrubber","m3/t",15,0,0,0,0,0]
["Opgraderingsanlæg - Membran","m3/t",15,0,0,0,0,0]
["Varmeproduktionsanlæg","m3/t",15,0,0,0,0,0]
["Slutafvanding, slam - lavteknologisk (slambede), Konstruktioner","PE",60,0,0,0,0,0]
["Slutafvanding, slam - lavteknologisk (slambede), Mek/EL","PE",20,0,0,0,0,0]
["Slutafvanding, slam - lavteknologisk (slambede), SRO","PE",10,0,0,0,0,0]
["Slutafvanding, slam - højteknologisk (centrifuger), Konstruktioner","PE",60,0,0,0,0,0]
["Slutafvanding, slam - højteknologisk (centrifuger), Mek/El","PE",20,0,0,0,0,0]
["Slutafvanding, slam - højteknologisk (centrifuger), SRO","PE",10,0,0,0,0,0]
["Renseanlæg >= 5.000 PE, Slamdisponering",null,null,null,null,null,"",""]
["Slutdisponering, slam - lavteknologisk (slammineralisering), Konstruktioner","PE",60,0,0,0,0,0]
["Slutdisponering, slam - lavteknologisk (slammineralisering), Mek/EL","PE",20,0,0,0,0,0]
["Slutdisponering, slam - lavteknologisk (slammineralisering), SRO","PE",10,0,0,0,0,0]
["Slutdisponering, slam - højteknologisk (slamtørring), Konstruktioner","PE",60,0,0,0,0,0]
["Slutdisponering, slam - højteknologisk (slamtørring), Mek/EL","PE",20,0,0,0,0,0]
["Slutdisponering, slam - højteknologisk (slamtørring), SRO","PE",10,0,0,0,0,0]
["Slutdisponering, slam - højteknologisk (slamtørring og -forbrænding), Konstruktioner","PE",60,0,0,0,0,0]
["Slutdisponering, slam - højteknologisk (slamtørring og -forbrænding), Mek/EL","PE",20,0,0,0,0,0]
["Slutdisponering, slam - højteknologisk (slamtørring og -forbrænding), SRO","PE",10,0,0,0,{"$f":"IF(D387=\"\",IF(E387>0,\"Ny data\",IF(E387=\"\",\"\",0)),IF(D387=0,IF(E387=0,0,\"Ny data\"),(E387-D387)/D387))","v":0},{"$f":"IF(E387=\"\",IF(F387>0,\"Ny data\",IF(F387=\"\",\"\",0)),IF(E387=0,IF(F387=0,0,\"Ny data\"),(F387-E387)/E387))","v":0}]
["Renseanlæg 8",null,null,null,null,null,"",""]
["Mindre renseanlæg",null,null,null,null,null,"",""]
["Mindre renseanlæg < 5.000 PE","PE",40,0,0,0,0,0]
["Renseanlæg >= 5.000 PE, Vandbehandling",null,null,null,null,null,"",""]
["Indløb med riste, Konstruktioner","PE",60,0,0,0,0,0]
["Indløb med riste, Mek/EL","PE",20,0,0,0,0,0]
["Indløb med riste, SRO","PE",10,0,0,0,0,0]
["Sand- og fedtfang, Kontruktioner","PE",60,0,0,0,0,0]
["Sand- og fedtfang, Mek/EL","PE",20,0,0,0,0,0]
["Sand- og fedtfang, SRO","PE",10,0,0,0,0,0]
["Forklaring, Konstruktioner","PE",60,0,0,0,0,0]
["Forklaring, Mek/EL","PE",20,0,0,0,0,0]
["Forklaring, SRO","PE",10,0,0,0,0,0]
["Beluftningstanke, Konstruktioner","PE",60,0,0,0,0,0]
["Beluftningstanke, Mek/EL","PE",20,0,0,0,0,0]
["Beluftningstanke, SRO","PE",10,0,0,0,0,0]
["Efterklaringstanke, Konstruktioner","PE",60,0,0,0,0,0]
["Efterklaringstanke, Mek/El","PE",20,0,0,0,0,0]
["Efterklaringstanke, SRO","PE",10,0,0,0,0,0]
["Efterbehandlingsanlæg (sandfilter), Konstruktioner","PE",60,0,0,0,0,0]
["Efterbehandlingsanlæg (sandfilter), Mek/EL","PE",20,0,0,0,0,0]
["Efterbehandlingsanlæg (sandfilter), SRO","PE",10,0,0,0,0,0]
["Renseanlæg >= 5.000 PE, Slambehandling",null,null,null,null,null,"",""]
["Forafvanding, slam, Konstruktion","PE",60,0,0,0,0,0]
["Forafvanding, slam, Mek/EL","PE",20,0,0,0,0,0]
["Forafvanding, slam, SRO","PE",10,0,0,0,0,0]
["Rådnetanke, slam, Konstruktioner","PE",60,0,0,0,0,0]
["Rådnetanke, slam, Mek/EL","PE",20,0,0,0,0,0]
["Rådnetanke, slam, SRO","PE",10,0,0,0,0,0]
["Gasdisponering, Konstruktioner","PE",60,0,0,0,0,0]
["Gasdisponering, Mek/EL","PE",20,0,0,0,0,0]
["Gasdisponering, SRO","PE",10,0,0,0,0,0]
["Gasdisponering - elproduktionsanlæg, Konstruktioner","PE",60,0,0,0,0,0]
["Gasdisponering - elproduktionsanlæg, Mek/EL","PE",20,0,0,0,0,0]
["Gasdisponering - elproduktionsanlæg, SRO","PE",10,0,0,0,0,0]
["Gasrensning - Aktivt kulfilter","m3/t",15,0,0,0,0,0]
["Gasrensning - Biologisk skrubber","m3/t",15,0,0,0,0,0]
["Opgraderingsanlæg - Membran","m3/t",15,0,0,0,0,0]
["Varmeproduktionsanlæg","m3/t",15,0,0,0,0,0]
["Slutafvanding, slam - lavteknologisk (slambede), Konstruktioner","PE",60,0,0,0,0,0]
["Slutafvanding, slam - lavteknologisk (slambede), Mek/EL","PE",20,0,0,0,0,0]
["Slutafvanding, slam - lavteknologisk (slambede), SRO","PE",10,0,0,0,0,0]
["Slutafvanding, slam - højteknologisk (centrifuger), Konstruktioner","PE",60,0,0,0,0,0]
["Slutafvanding, slam - højteknologisk (centrifuger), Mek/El","PE",20,0,0,0,0,0]
["Slutafvanding, slam - højteknologisk (centrifuger), SRO","PE",10,0,0,0,0,0]
["Renseanlæg >= 5.000 PE, Slamdisponering",null,null,null,null,null,"",""]
["Slutdisponering, slam - lavteknologisk (slammineralisering), Konstruktioner","PE",60,0,0,0,0,0]
["Slutdisponering, slam - lavteknologisk (slammineralisering), Mek/EL","PE",20,0,0,0,0,0]
["Slutdisponering, slam - lavteknologisk (slammineralisering), SRO","PE",10,0,0,0,0,0]
["Slutdisponering, slam - højteknologisk (slamtørring), Konstruktioner","PE",60,0,0,0,0,0]
["Slutdisponering, slam - højteknologisk (slamtørring), Mek/EL","PE",20,0,0,0,0,0]
["Slutdisponering, slam - højteknologisk (slamtørring), SRO","PE",10,0,0,0,0,0]
["Slutdisponering, slam - højteknologisk (slamtørring og -forbrænding), Konstruktioner","PE",60,0,0,0,0,0]
["Slutdisponering, slam - højteknologisk (slamtørring og -forbrænding), Mek/EL","PE",20,0,0,0,0,0]
["Slutdisponering, slam - højteknologisk (slamtørring og -forbrænding), SRO","PE",10,0,0,0,0,0]
["Renseanlæg 9",null,null,null,null,null,"",""]
["Mindre renseanlæg",null,null,null,null,null,"",""]
["Mindre renseanlæg < 5.000 PE","PE",40,0,0,0,0,0]
["Renseanlæg >= 5.000 PE, Vandbehandling",null,null,null,null,null,"",""]
["Indløb med riste, Konstruktioner","PE",60,0,0,0,0,0]
["Indløb med riste, Mek/EL","PE",20,0,0,0,0,0]
["Indløb med riste, SRO","PE",10,0,0,0,0,0]
["Sand- og fedtfang, Kontruktioner","PE",60,0,0,0,0,0]
["Sand- og fedtfang, Mek/EL","PE",20,0,0,0,{"$f":"IF(D451=\"\",IF(E451>0,\"Ny data\",IF(E451=\"\",\"\",0)),IF(D451=0,IF(E451=0,0,\"Ny data\"),(E451-D451)/D451))","v":0},{"$f":"IF(E451=\"\",IF(F451>0,\"Ny data\",IF(F451=\"\",\"\",0)),IF(E451=0,IF(F451=0,0,\"Ny data\"),(F451-E451)/E451))","v":0}]
["Sand- og fedtfang, SRO","PE",10,0,0,0,0,0]
["Forklaring, Konstruktioner","PE",60,0,0,0,0,0]
["Forklaring, Mek/EL","PE",20,0,0,0,0,0]
["Forklaring, SRO","PE",10,0,0,0,0,0]
["Beluftningstanke, Konstruktioner","PE",60,0,0,0,0,0]
["Beluftningstanke, Mek/EL","PE",20,0,0,0,0,0]
["Beluftningstanke, SRO","PE",10,0,0,0,0,0]
["Efterklaringstanke, Konstruktioner","PE",60,0,0,0,0,0]
["Efterklaringstanke, Mek/El","PE",20,0,0,0,0,0]
["Efterklaringstanke, SRO","PE",10,0,0,0,0,0]
["Efterbehandlingsanlæg (sandfilter), Konstruktioner","PE",60,0,0,0,0,0]
["Efterbehandlingsanlæg (sandfilter), Mek/EL","PE",20,0,0,0,0,0]
["Efterbehandlingsanlæg (sandfilter), SRO","PE",10,0,0,0,0,0]
["Renseanlæg >= 5.000 PE, Slambehandling",null,null,null,null,null,"",""]
["Forafvanding, slam, Konstruktion","PE",60,0,0,0,0,0]
["Forafvanding, slam, Mek/EL","PE",20,0,0,0,0,0]
["Forafvanding, slam, SRO","PE",10,0,0,0,0,0]
["Rådnetanke, slam, Konstruktioner","PE",60,0,0,0,0,0]
["Rådnetanke, slam, Mek/EL","PE",20,0,0,0,0,0]
["Rådnetanke, slam, SRO","PE",10,0,0,0,0,0]
["Gasdisponering, Konstruktioner","PE",60,0,0,0,0,0]
["Gasdisponering, Mek/EL","PE",20,0,0,0,0,0]
["Gasdisponering, SRO","PE",10,0,0,0,0,0]
["Gasdisponering - elproduktionsanlæg, Konstruktioner","PE",60,0,0,0,0,0]
["Gasdisponering - elproduktionsanlæg, Mek/EL","PE",20,0,0,0,0,0]
["Gasdisponering - elproduktionsanlæg, SRO","PE",10,0,0,0,0,0]
["Gasrensning - Aktivt kulfilter","m3/t",15,0,0,0,0,0]
["Gasrensning - Biologisk skrubber","m3/t",15,0,0,0,0,0]
["Opgraderingsanlæg - Membran","m3/t",15,0,0,0,0,0]
["Varmeproduktionsanlæg","m3/t",15,0,0,0,0,0]
["Slutafvanding, slam - lavteknologisk (slambede), Konstruktioner","PE",60,0,0,0,0,0]
["Slutafvanding, slam - lavteknologisk (slambede), Mek/EL","PE",20,0,0,0,0,0]
["Slutafvanding, slam - lavteknologisk (slambede), SRO","PE",10,0,0,0,0,0]
["Slutafvanding, slam - højteknologisk (centrifuger), Konstruktioner","PE",60,0,0,0,0,0]
["Slutafvanding, slam - højteknologisk (centrifuger), Mek/El","PE",20,0,0,0,0,0]
["Slutafvanding, slam - højteknologisk (centrifuger), SRO","PE",10,0,0,0,0,0]
["Renseanlæg >= 5.000 PE, Slamdisponering",null,null,null,null,null,"",""]
["Slutdisponering, slam - lavteknologisk (slammineralisering), Konstruktioner","PE",60,0,0,0,0,0]
["Slutdisponering, slam - lavteknologisk (slammineralisering), Mek/EL","PE",20,0,0,0,0,0]
["Slutdisponering, slam - lavteknologisk (slammineralisering), SRO","PE",10,0,0,0,0,0]
["Slutdisponering, slam - højteknologisk (slamtørring), Konstruktioner","PE",60,0,0,0,0,0]
["Slutdisponering, slam - højteknologisk (slamtørring), Mek/EL","PE",20,0,0,0,0,0]
["Slutdisponering, slam - højteknologisk (slamtørring), SRO","PE",10,0,0,0,0,0]
["Slutdisponering, slam - højteknologisk (slamtørring og -forbrænding), Konstruktioner","PE",60,0,0,0,0,0]
["Slutdisponering, slam - højteknologisk (slamtørring og -forbrænding), Mek/EL","PE",20,0,0,0,0,0]
["Slutdisponering, slam - højteknologisk (slamtørring og -forbrænding), SRO","PE",10,0,0,0,0,0]
["Renseanlæg 10",null,null,null,null,null,"",""]
["Mindre renseanlæg",null,null,null,null,null,"",""]
["Mindre renseanlæg < 5.000 PE","PE",40,0,0,0,0,0]
["Renseanlæg >= 5.000 PE, Vandbehandling",null,null,null,null,null,"",""]
["Indløb med riste, Konstruktioner","PE",60,0,0,0,0,0]
["Indløb med riste, Mek/EL","PE",20,0,0,0,0,0]
["Indløb med riste, SRO","PE",10,0,0,0,0,0]
["Sand- og fedtfang, Kontruktioner","PE",60,0,0,0,0,0]
["Sand- og fedtfang, Mek/EL","PE",20,0,0,0,0,0]
["Sand- og fedtfang, SRO","PE",10,0,0,0,0,0]
["Forklaring, Konstruktioner","PE",60,0,0,0,0,0]
["Forklaring, Mek/EL","PE",20,0,0,0,0,0]
["Forklaring, SRO","PE",10,0,0,0,0,0]
["Beluftningstanke, Konstruktioner","PE",60,0,0,0,0,0]
["Beluftningstanke, Mek/EL","PE",20,0,0,0,0,0]
["Beluftningstanke, SRO","PE",10,0,0,0,0,0]
["Efterklaringstanke, Konstruktioner","PE",60,0,0,0,0,0]
["Efterklaringstanke, Mek/El","PE",20,0,0,0,{"$f":"IF(D515=\"\",IF(E515>0,\"Ny data\",IF(E515=\"\",\"\",0)),IF(D515=0,IF(E515=0,0,\"Ny data\"),(E515-D515)/D515))","v":0},{"$f":"IF(E515=\"\",IF(F515>0,\"Ny data\",IF(F515=\"\",\"\",0)),IF(E515=0,IF(F515=0,0,\"Ny data\"),(F515-E515)/E515))","v":0}]
["Efterklaringstanke, SRO","PE",10,0,0,0,0,0]
["Efterbehandlingsanlæg (sandfilter), Konstruktioner","PE",60,0,0,0,0,0]
["Efterbehandlingsanlæg (sandfilter), Mek/EL","PE",20,0,0,0,0,0]
["Efterbehandlingsanlæg (sandfilter), SRO","PE",10,0,0,0,0,0]
["Renseanlæg >= 5.000 PE, Slambehandling",null,null,null,null,null,"",""]
["Forafvanding, slam, Konstruktion","PE",60,0,0,0,0,0]
["Forafvanding, slam, Mek/EL","PE",20,0,0,0,0,0]
["Forafvanding, slam, SRO","PE",10,0,0,0,0,0]
["Rådnetanke, slam, Konstruktioner","PE",60,0,0,0,0,0]
["Rådnetanke, slam, Mek/EL","PE",20,0,0,0,0,0]
["Rådnetanke, slam, SRO","PE",10,0,0,0,0,0]
["Gasdisponering, Konstruktioner","PE",60,0,0,0,0,0]
["Gasdisponering, Mek/EL","PE",20,0,0,0,0,0]
["Gasdisponering, SRO","PE",10,0,0,0,0,0]
["Gasdisponering - elproduktionsanlæg, Konstruktioner","PE",60,0,0,0,0,0]
["Gasdisponering - elproduktionsanlæg, Mek/EL","PE",20,0,0,0,0,0]
["Gasdisponering - elproduktionsanlæg, SRO","PE",10,0,0,0,0,0]
["Gasrensning - Aktivt kulfilter","m3/t",15,0,0,0,0,0]
["Gasrensning - Biologisk skrubber","m3/t",15,0,0,0,0,0]
["Opgraderingsanlæg - Membran","m3/t",15,0,0,0,0,0]
["Varmeproduktionsanlæg","m3/t",15,0,0,0,0,0]
["Slutafvanding, slam - lavteknologisk (slambede), Konstruktioner","PE",60,0,0,0,0,0]
["Slutafvanding, slam - lavteknologisk (slambede), Mek/EL","PE",20,0,0,0,0,0]
["Slutafvanding, slam - lavteknologisk (slambede), SRO","PE",10,0,0,0,0,0]
["Slutafvanding, slam - højteknologisk (centrifuger), Konstruktioner","PE",60,0,0,0,0,0]
["Slutafvanding, slam - højteknologisk (centrifuger), Mek/El","PE",20,0,0,0,0,0]
["Slutafvanding, slam - højteknologisk (centrifuger), SRO","PE",10,0,0,0,0,0]
["Renseanlæg >= 5.000 PE, Slamdisponering",null,null,null,null,null,"",""]
["Slutdisponering, slam - lavteknologisk (slammineralisering), Konstruktioner","PE",60,0,0,0,0,0]
["Slutdisponering, slam - lavteknologisk (slammineralisering), Mek/EL","PE",20,0,0,0,0,0]
["Slutdisponering, slam - lavteknologisk (slammineralisering), SRO","PE",10,0,0,0,0,0]
["Slutdisponering, slam - højteknologisk (slamtørring), Konstruktioner","PE",60,0,0,0,0,0]
["Slutdisponering, slam - højteknologisk (slamtørring), Mek/EL","PE",20,0,0,0,0,0]
["Slutdisponering, slam - højteknologisk (slamtørring), SRO","PE",10,0,0,0,0,0]
["Slutdisponering, slam - højteknologisk (slamtørring og -forbrænding), Konstruktioner","PE",60,0,0,0,0,0]
["Slutdisponering, slam - højteknologisk (slamtørring og -forbrænding), Mek/EL","PE",20,0,0,0,0,0]
["Slutdisponering, slam - højteknologisk (slamtørring og -forbrænding), SRO","PE",20,0,0,0,0,0]

{"sheet":"Distributionsanlæg","index":1,"n_rows":318,"n_cols":9,"rows_kept":318,"cut":false,"hidden":false,"merged":[[0,0,1,0],[0,1,1,1],[0,2,1,2],[0,3,1,3],[0,8,1,8],[0,4,1,4],[0,5,1,5],[0,6,1,6],[0,7,1,7]]}
["Distributionsanlæg","Enhed","Standard-levetid","Samlet mængde per 31/12-2022","Samlet mængde per 31/12-2023","Samlet mængde per 31/12-2024","Afvigelse 2022-2023","Afvigelse 2023-2024","Bemærkninger"]
[]
["Ledningsnet - Land",null,null,null,null,null,{"$f":"IF(D3=\"\",IF(E3>0,\"Ny data\",IF(E3=\"\",\"\",0)),IF(D3=0,IF(E3=0,0,\"Ny data\"),(E3-D3)/D3))","v":""},{"$f":"IF(E3=\"\",IF(F3>0,\"Ny data\",IF(F3=\"\",\"\",0)),IF(E3=0,IF(F3=0,0,\"Ny data\"),(F3-E3)/E3))","v":""}]
["Ledningsnet ≤ Ø 200 mm ","meter",75,{"$f":"7683+6*D61","v":12093},{"$f":"7683+6*E61","v":12105},{"$f":"7732+6*F61","v":12154},9.9230960059538574E-4,4.0479140850888063E-3]
["Ø 200 mm < Ledningsnet ≤ Ø 500 mm ","meter",75,4508,4508,4508,0,0]
["Ø 500 mm < Ledningsnet ≤ Ø 800 mm","meter",75,931,931,931,0,0]
["Ø 800 mm < Ledningsnet ≤ Ø 1000 mm","meter",75,2498,2498,2498,0,0]
["Ø 1000 mm < Ledningsnet ≤ Ø 1200 mm","meter",75,69,69,69,0,0]
["Ø 1200 mm < Ledningsnet ≤ Ø 1600 mm","meter",75,112,112,112,0,0]
["Ledningsnet > Ø 1600 mm (rørbassiner og transportledninger)","meter",75,0,0,0,0,0]
["Strømpeforing ≤ Ø 200 mm","meter",50,0,0,0,0,0]
["Strømpeforing Ø 200 mm < Ledningsnet ≤ Ø 500 mm","meter",50,0,0,0,0,0]
["Strømpeforing Ø 500 mm < Ledningsnet ≤ Ø 800 mm","meter",50,0,0,0,0,0]
["Strømpeforing Ø 800 mm < Ledningsnet ≤ Ø 1000 mm","meter",50,0,0,0,0,0]
["Strømpeforing Ø 1000 mm < Ledningsnet ≤ Ø 1200 mm","meter",50,0,0,0,0,0]
["Strømpeforing Ø 1200 mm < Ledningsnet ≤ Ø 1600 mm","meter",50,0,0,0,0,0]
["Ledningsnet - By",null,null,null,null,null,"",""]
["Ledningsnet ≤ Ø 200 mm ","meter",75,{"$f":"SUM(C18+393)+D25-C25","v":28273},150741,150741,4.3316238107027907,0,"Fejl i 2022"]
["Ø 200 mm < Ledningsnet ≤ Ø 500 mm ","meter",75,{"$f":"SUM(C19+114)+D26-C26","v":18578},18759,18759,9.7427064269566162E-3,0]
["Ø 500 mm < Ledningsnet ≤ Ø 800 mm","meter",75,{"$f":"16207+D27","v":20094},{"$f":"16207+E27","v":20094},{"$f":"16207+F27","v":20094},0,0]
["Ø 800 mm < Ledningsnet ≤ Ø 1000 mm","meter",75,{"$f":"5600+D28","v":6205},{"$f":"5600+E28","v":6205},{"$f":"5600+F28","v":6205},0,0]
["Ø 1000 mm < Ledningsnet ≤ Ø 1200 mm","meter",75,3230,3230,3230,0,0]
["Ø 1200 mm < Ledningsnet ≤ Ø 1600 mm","meter",75,1971,1971,1971,0,0]
["Ledningsnet > Ø 1600 mm (rørbassiner og transportledninger)","meter",75,0,0,0,0,0]
["Strømpeforing ≤ Ø 200 mm","meter",50,27855,27855,27855,0,0]
["Strømpeforing Ø 200 mm < Ledningsnet ≤ Ø 500 mm","meter",50,18439,18439,18439,0,0]
["Strømpeforing Ø 500 mm < Ledningsnet ≤ Ø 800 mm","meter",50,3887,3887,3887,0,0]
["Strømpeforing Ø 800 mm < Ledningsnet ≤ Ø 1000 mm","meter",50,605,605,605,0,0]
["Strømpeforing Ø 1000 mm < Ledningsnet ≤ Ø 1200 mm","meter",50,0,0,0,0,0]
["Strømpeforing Ø 1200 mm < Ledningsnet ≤ Ø 1600 mm","meter",50,0,0,0,0,0]
["Ledningsnet - City",null,null,null,null,null,"",""]
["Ledningsnet ≤ Ø 200 mm ","meter",75,{"$f":"5105+D39+D67*4","v":15759},{"$f":"5105+E39+E67*4","v":15759},{"$f":"5105+F39+F67*4","v":15759},0,0]
["Ø 200 mm < Ledningsnet ≤ Ø 500 mm ","meter",75,{"$f":"18727+D40","v":21521},{"$f":"18727+E40","v":21521},{"$f":"18727+F40","v":21521},0,0]
["Ø 500 mm < Ledningsnet ≤ Ø 800 mm","meter",75,{"$f":"3354+D41","v":3855},{"$f":"3354+E41","v":3855},{"$f":"3354+F41","v":3855},0,0]
["Ø 800 mm < Ledningsnet ≤ Ø 1000 mm","meter",75,{"$f":"1888+D42","v":2030},{"$f":"1888+E42","v":2030},{"$f":"1888+F42","v":2030},0,0]
["Ø 1000 mm < Ledningsnet ≤ Ø 1200 mm","meter",75,1974,1974,1974,0,0]
["Ø 1200 mm < Ledningsnet ≤ Ø 1600 mm","meter",75,146,146,146,0,0]
["Ledningsnet > Ø 1600 mm (rørbassiner og transportledninger)","meter",75,0,0,0,0,0]
["Strømpeforing ≤ Ø 200 mm","meter",50,1610,1610,1610,0,0]
["Strømpeforing Ø 200 mm < Ledningsnet ≤ Ø 500 mm","meter",50,2794,2794,2794,0,0]
["Strømpeforing Ø 500 mm < Ledningsnet ≤ Ø 800 mm","meter",50,501,501,501,0,0]
["Strømpeforing Ø 800 mm < Ledningsnet ≤ Ø 1000 mm","meter",50,142,142,142,0,0]
["Strømpeforing Ø 1000 mm < Ledningsnet ≤ Ø 1200 mm","meter",50,0,0,0,0,0]
["Strømpeforing Ø 1200 mm < Ledningsnet ≤ Ø 1600 mm","meter",50,0,0,0,0,0]
["Ledningsnet - Indre city",null,null,null,null,null,"",""]
["Ledningsnet ≤ Ø 200 mm ","meter",75,0,0,0,0,0]
["Ø 200 mm < Ledningsnet ≤ Ø 500 mm ","meter",75,0,0,0,0,0]
["Ø 500 mm < Ledningsnet ≤ Ø 800 mm","meter",75,0,0,0,0,0]
["Ø 800 mm < Ledningsnet ≤ Ø 1000 mm","meter",75,0,0,0,0,0]
["Ø 1000 mm < Ledningsnet ≤ Ø 1200 mm","meter",75,0,0,0,0,0]
["Ø 1200 mm < Ledningsnet ≤ Ø 1600 mm","meter",75,0,0,0,0,0]
["Ledningsnet > Ø 1600 mm (rørbassiner og transportledninger)","meter",75,0,0,0,0,0]
["Strømpeforing ≤ Ø 200 mm","meter",50,0,0,0,0,0]
["Strømpeforing Ø 200 mm < Ledningsnet ≤ Ø 500 mm","meter",50,0,0,0,0,0]
["Strømpeforing Ø 500 mm < Ledningsnet ≤ Ø 800 mm","meter",50,0,0,0,0,0]
["Strømpeforing Ø 800 mm < Ledningsnet ≤ Ø 1000 mm","meter",50,0,0,0,0,0]
["Strømpeforing Ø 1000 mm < Ledningsnet ≤ Ø 1200 mm","meter",50,0,0,0,0,0]
["Strømpeforing Ø 1200 mm < Ledningsnet ≤ Ø 1600 mm","meter",50,0,0,0,0,0]
["Brønde og stik, ledningsnet - Land",null,null,null,null,null,"",""]
["Brønde","stk.",75,267,267,267,0,0]
["Stik","stk.",75,735,737,737,2.7210884353741495E-3,0]
["Brønde og stik, ledningsnet - By",null,null,null,null,null,"",""]
["Brønde","stk.",75,{"$f":"SUM(C63+44)","v":119},3020,3020,24.3781512605042,0,"Fejl i år 2022. Skulle have været 3016 brønde."]
["Stik","stk.",75,{"$f":"SUM(C64+9)","v":84},10739,10740,126.8452380952381,9.3118539901294352E-5,"Fejl i år 2022. Skulle have været 10692 stik."]
["Brønde og stik, ledningsnet - City",null,null,null,null,null,"",""]
["Brønde","stk.",75,629,629,629,0,0]
["Stik","stk.",75,2261,2261,2261,{"$f":"IF(D67=\"\",IF(E67>0,\"Ny data\",IF(E67=\"\",\"\",0)),IF(D67=0,IF(E67=0,0,\"Ny data\"),(E67-D67)/D67))","v":0},{"$f":"IF(E67=\"\",IF(F67>0,\"Ny data\",IF(F67=\"\",\"\",0)),IF(E67=0,IF(F67=0,0,\"Ny data\"),(F67-E67)/E67))","v":0}]
["Brønde og stik, ledningsnet - Indre city",null,null,null,null,null,"",""]
["Brønde","stk.",75,0,0,0,0,0]
["Stik","stk.",75,0,0,0,0,0]
["Små pumpestationer (<100 l/s) inkl. SRO-anlæg - Land",null,null,null,null,null,"",""]
["Tryksatte minipumpestationer (husstandssystemer)","stk.",30,0,0,0,0,0]
["Pumpestationer i brønde (< 6,25 m2), Konstruktioner","stk.",50,18,20,21,0.1111111111111111,0.05]
["Pumpestationer i brønde (< 6,25 m2), Mek/EL","stk.",20,18,20,21,0.1111111111111111,0.05]
["Pumpestationer i brønde (< 6,25 m2), SRO","stk.",10,18,20,21,0.1111111111111111,0.05]
["Pumpestationer m. overbygning (< 20 m2), Konstruktioner","stk.",50,0,0,0,0,0]
["Pumpestationer m. overbygning (< 20 m2), Mek/EL","stk.",20,0,0,0,0,0]
["Pumpestationer m. overbygning (< 20 m2), SRO","stk.",10,0,0,0,0,0]
["Pumpestationer i underjordiske bygværker (<50 m2), Konstruktioner","stk.",50,0,0,0,0,0]
["Pumpestationer i underjordiske bygværker (<50 m2), Mek/El","stk.",20,0,0,0,0,0]
["Pumpestationer i underjordiske bygværker (<50 m2), SRO","stk.",10,0,0,0,0,0]
["Små pumpestationer (<100 l/s) inkl. SRO-anlæg - By",null,null,null,null,null,"",""]
["Tryksatte minipumpestationer (husstandssystemer)","stk.",30,0,0,0,0,0]
["Pumpestationer i brønde (< 6,25 m2), Konstruktioner","stk.",50,2,2,2,0,0]
["Pumpestationer i brønde (< 6,25 m2), Mek/EL","stk.",20,2,2,2,0,0]
["Pumpestationer i brønde (< 6,25 m2), SRO","stk.",10,2,2,2,0,0]
["Pumpestationer m. overbygning (< 20 m2), Konstruktioner","stk.",50,39,39,39,0,0]
["Pumpestationer m. overbygning (< 20 m2), Mek/EL","stk.",20,39,39,39,0,0]
["Pumpestationer m. overbygning (< 20 m2), SRO","stk.",10,39,39,39,0,0]
["Pumpestationer i underjordiske bygværker (<50 m2), Konstruktioner","stk.",50,0,0,0,0,0]
["Pumpestationer i underjordiske bygværker (<50 m2), Mek/El","stk.",20,0,0,0,0,0]
["Pumpestationer i underjordiske bygværker (<50 m2), SRO","stk.",10,0,0,0,0,0]
["Små pumpestationer (<100 l/s) inkl. SRO-anlæg - City",null,null,null,null,null,"",""]
["Tryksatte minipumpestationer (husstandssystemer)","stk.",30,0,0,0,0,0]
["Pumpestationer i brønde (< 6,25 m2), Konstruktioner","stk.",50,0,0,0,0,0]
["Pumpestationer i brønde (< 6,25 m2), Mek/EL","stk.",20,0,0,0,0,0]
["Pumpestationer i brønde (< 6,25 m2), SRO","stk.",10,0,0,0,0,0]
["Pumpestationer m. overbygning (< 20 m2), Konstruktioner","stk.",50,1,1,1,0,0]
["Pumpestationer m. overbygning (< 20 m2), Mek/EL","stk.",20,1,1,1,0,0]
["Pumpestationer m. overbygning (< 20 m2), SRO","stk.",10,1,1,1,0,0]
["Pumpestationer i underjordiske bygværker (<50 m2), Konstruktioner","stk.",50,0,0,0,0,0]
["Pumpestationer i underjordiske bygværker (<50 m2), Mek/El","stk.",20,0,0,0,0,0]
["Pumpestationer i underjordiske bygværker (<50 m2), SRO","stk.",10,0,0,0,0,0]
["Små pumpestationer (<100 l/s) inkl. SRO-anlæg - Indre city",null,null,null,null,null,"",""]
["Tryksatte minipumpestationer (husstandssystemer)","stk.",30,0,0,0,0,0]
["Pumpestationer i brønde (< 6,25 m2), Konstruktioner","stk.",50,0,0,0,0,0]
["Pumpestationer i brønde (< 6,25 m2), Mek/EL","stk.",20,0,0,0,0,0]
["Pumpestationer i brønde (< 6,25 m2), SRO","stk.",10,0,0,0,0,0]
["Pumpestationer m. overbygning (< 20 m2), Konstruktioner","stk.",50,0,0,0,0,0]
["Pumpestationer m. overbygning (< 20 m2), Mek/EL","stk.",20,0,0,0,0,0]
["Pumpestationer m. overbygning (< 20 m2), SRO","stk.",10,0,0,0,0,0]
["Pumpestationer i underjordiske bygværker (<50 m2), Konstruktioner","stk.",50,0,0,0,0,0]
["Pumpestationer i underjordiske bygværker (<50 m2), Mek/El","stk.",20,0,0,0,0,0]
["Pumpestationer i underjordiske bygværker (<50 m2), SRO","stk.",10,0,0,0,0,0]
["Store pumpestationer: inkl. SRO-anlæg - Land",null,null,null,null,null,"",""]
["Kælder","m2",75,25,25,25,0,0]
["Pumpeinstallation Miljøklasse A (100-300 l/s) - Mek/EL","stk.",20,0,0,0,0,0]
["Pumpeinstallation Miljøklasse A (100-300 l/s) - SRO","stk.",10,0,0,0,0,0]
["Pumpeinstallation Miljøklasse A (300-600 l/s) - Mek/EL","stk.",20,1,1,1,0,0]
["Pumpeinstallation Miljøklasse A (300-600 l/s) - SRO","stk.",10,1,1,1,0,0]
["Pumpeinstallation Miljøklasse A (600-1.000 l/s) - Mek/EL","stk.",20,0,0,0,0,0]
["Pumpeinstallation Miljøklasse A (600-1.000 l/s) - SRO","stk.",10,0,0,0,0,0]
["Pumpeinstallation Miljøklasse A (1.000-1.500 l/s) - Mek/EL","stk.",20,0,0,0,0,0]
["Pumpeinstallation Miljøklasse A (1.000-1.500 l/s) - SRO","stk.",10,0,0,0,0,0]
["Pumpeinstallation Miljøklasse B (100-300 l/s) - Mek/EL","stk.",20,0,0,0,0,0]
["Pumpeinstallation Miljøklasse B (100-300 l/s) - SRO","stk.",10,0,0,0,0,0]
["Pumpeinstallation Miljøklasse B (300-600 l/s) - Mek/EL","stk.",20,0,0,0,0,0]
["Pumpeinstallation Miljøklasse B (300-600 l/s) - SRO","stk.",10,0,0,0,0,0]
["Pumpeinstallation Miljøklasse B (600-1.000 l/s) - Mek/EL","stk.",20,0,0,0,0,0]
["Pumpeinstallation Miljøklasse B (600-1.000 l/s) - SRO","stk.",10,0,0,0,0,0]
["Pumpeinstallation Miljøklasse B (1.000-1.500 l/s) - Mek/EL","stk.",20,0,0,0,{"$f":"IF(D131=\"\",IF(E131>0,\"Ny data\",IF(E131=\"\",\"\",0)),IF(D131=0,IF(E131=0,0,\"Ny data\"),(E131-D131)/D131))","v":0},{"$f":"IF(E131=\"\",IF(F131>0,\"Ny data\",IF(F131=\"\",\"\",0)),IF(E131=0,IF(F131=0,0,\"Ny data\"),(F131-E131)/E131))","v":0}]
["Pumpeinstallation Miljøklasse B (1.000-1.500 l/s) - SRO","stk.",10,0,0,0,0,0]
["Overbygning","m2",75,0,0,0,0,0]
["Store pumpestationer: inkl. SRO-anlæg - By",null,null,null,null,null,"",""]
["Kælder","m2",75,610,610,610,0,0]
["Pumpeinstallation Miljøklasse A (100-300 l/s) - Mek/EL","stk.",20,3,3,3,0,0]
["Pumpeinstallation Miljøklasse A (100-300 l/s) - SRO","stk.",10,3,3,3,0,0]
["Pumpeinstallation Miljøklasse A (300-600 l/s) - Mek/EL","stk.",20,4,4,4,0,0]
["Pumpeinstallation Miljøklasse A (300-600 l/s) - SRO","stk.",10,4,4,4,0,0]
["Pumpeinstallation Miljøklasse A (600-1.000 l/s) - Mek/EL","stk.",20,2,2,2,0,0]
["Pumpeinstallation Miljøklasse A (600-1.000 l/s) - SRO","stk.",10,2,2,2,0,0]
["Pumpeinstallation Miljøklasse A (1.000-1.500 l/s) - Mek/EL","stk.",20,5,5,5,0,0]
["Pumpeinstallation Miljøklasse A (1.000-1.500 l/s) - SRO","stk.",10,5,5,5,0,0]
["Pumpeinstallation Miljøklasse B (100-300 l/s) - Mek/EL","stk.",20,0,0,0,0,0]
["Pumpeinstallation Miljøklasse B (100-300 l/s) - SRO","stk.",10,0,0,0,0,0]
["Pumpeinstallation Miljøklasse B (300-600 l/s) - Mek/EL","stk.",20,0,0,0,0,0]
["Pumpeinstallation Miljøklasse B (300-600 l/s) - SRO","stk.",10,0,0,0,0,0]
["Pumpeinstallation Miljøklasse B (600-1.000 l/s) - Mek/EL","stk.",20,0,0,0,0,0]
["Pumpeinstallation Miljøklasse B (600-1.000 l/s) - SRO","stk.",10,0,0,0,0,0]
["Pumpeinstallation Miljøklasse B (1.000-1.500 l/s) - Mek/EL","stk.",20,0,0,0,0,0]
["Pumpeinstallation Miljøklasse B (1.000-1.500 l/s) - SRO","stk.",10,0,0,0,0,0]
["Overbygning ","m2",75,1040,1040,1040,0,0]
["Store pumpestationer: inkl. SRO-anlæg - City",null,null,null,null,null,"",""]
["Kælder","m2",75,0,0,0,0,0]
["Pumpeinstallation Miljøklasse A (100-300 l/s) - Mek/EL","stk.",20,0,0,0,0,0]
["Pumpeinstallation Miljøklasse A (100-300 l/s) - SRO","stk.",10,0,0,0,0,0]
["Pumpeinstallation Miljøklasse A (300-600 l/s) - Mek/EL","stk.",20,0,0,0,0,0]
["Pumpeinstallation Miljøklasse A (300-600 l/s) - SRO","stk.",10,0,0,0,0,0]
["Pumpeinstallation Miljøklasse A (600-1.000 l/s) - Mek/EL","stk.",20,0,0,0,0,0]
["Pumpeinstallation Miljøklasse A (600-1.000 l/s) - SRO","stk.",10,0,0,0,0,0]
["Pumpeinstallation Miljøklasse A (1.000-1.500 l/s) - Mek/EL","stk.",20,0,0,0,0,0]
["Pumpeinstallation Miljøklasse A (1.000-1.500 l/s) - SRO","stk.",10,0,0,0,0,0]
["Pumpeinstallation Miljøklasse B (100-300 l/s) - Mek/EL","stk.",20,0,0,0,0,0]
["Pumpeinstallation Miljøklasse B (100-300 l/s) - SRO","stk.",10,0,0,0,0,0]
["Pumpeinstallation Miljøklasse B (300-600 l/s) - Mek/EL","stk.",20,0,0,0,0,0]
["Pumpeinstallation Miljøklasse B (300-600 l/s) - SRO","stk.",10,0,0,0,0,0]
["Pumpeinstallation Miljøklasse B (600-1.000 l/s) - Mek/EL","stk.",20,0,0,0,0,0]
["Pumpeinstallation Miljøklasse B (600-1.000 l/s) - SRO","stk.",10,0,0,0,0,0]
["Pumpeinstallation Miljøklasse B (1.000-1.500 l/s) - Mek/EL","stk.",20,0,0,0,0,0]
["Pumpeinstallation Miljøklasse B (1.000-1.500 l/s) - SRO","stk.",10,0,0,0,0,0]
["Overbygning ","m2",75,0,0,0,0,0]
["Store pumpestationer: inkl. SRO-anlæg - Indre city",null,null,null,null,null,"",""]
["Kælder","m2",75,0,0,0,0,0]
["Pumpeinstallation Miljøklasse A (100-300 l/s) - Mek/EL","stk.",20,0,0,0,0,0]
["Pumpeinstallation Miljøklasse A (100-300 l/s) - SRO","stk.",10,0,0,0,0,0]
["Pumpeinstallation Miljøklasse A (300-600 l/s) - Mek/EL","stk.",20,0,0,0,0,0]
["Pumpeinstallation Miljøklasse A (300-600 l/s) - SRO","stk.",10,0,0,0,0,0]
["Pumpeinstallation Miljøklasse A (600-1.000 l/s) - Mek/EL","stk.",20,0,0,0,0,0]
["Pumpeinstallation Miljøklasse A (600-1.000 l/s) - SRO","stk.",10,0,0,0,0,0]
["Pumpeinstallation Miljøklasse A (1.000-1.500 l/s) - Mek/EL","stk.",20,0,0,0,0,0]
["Pumpeinstallation Miljøklasse A (1.000-1.500 l/s) - SRO","stk.",10,0,0,0,0,0]
["Pumpeinstallation Miljøklasse B (100-300 l/s) - Mek/EL","stk.",20,0,0,0,0,0]
["Pumpeinstallation Miljøklasse B (100-300 l/s) - SRO","stk.",10,0,0,0,0,0]
["Pumpeinstallation Miljøklasse B (300-600 l/s) - Mek/EL","stk.",20,0,0,0,0,0]
["Pumpeinstallation Miljøklasse B (300-600 l/s) - SRO","stk.",10,0,0,0,0,0]
["Pumpeinstallation Miljøklasse B (600-1.000 l/s) - Mek/EL","stk.",20,0,0,0,0,0]
["Pumpeinstallation Miljøklasse B (600-1.000 l/s) - SRO","stk.",10,0,0,0,0,0]
["Pumpeinstallation Miljøklasse B (1.000-1.500 l/s) - Mek/EL","stk.",20,0,0,0,0,0]
["Pumpeinstallation Miljøklasse B (1.000-1.500 l/s) - SRO","stk.",10,0,0,0,0,0]
["Overbygning","m2",75,0,0,0,0,0]
["Overløbsbygværker - Land",null,null,null,null,null,"",""]
["Kælder (< 7 m2) ","stk.",75,0,0,0,0,0]
["Kælder (7 - 20 m2) ","m2",75,0,0,0,0,0]
["Kælder (20 - 30 m2)","m2",75,0,0,0,0,0]
["Installationer (mindre end 7 m2)","stk.",20,0,0,0,{"$f":"IF(D195=\"\",IF(E195>0,\"Ny data\",IF(E195=\"\",\"\",0)),IF(D195=0,IF(E195=0,0,\"Ny data\"),(E195-D195)/D195))","v":0},{"$f":"IF(E195=\"\",IF(F195>0,\"Ny data\",IF(F195=\"\",\"\",0)),IF(E195=0,IF(F195=0,0,\"Ny data\"),(F195-E195)/E195))","v":0}]
["Installationer, Miljøklasse A. (7-20 m2) - Mek/EL","stk.",20,0,0,0,0,0]
["Installationer, Miljøklasse A. (7-20 m2) - SRO","stk.",10,0,0,0,0,0]
["Installationer, Miljøklasse A. (20-30 m2) - Mek/EL","stk.",20,0,0,0,0,0]
["Installationer, Miljøklasse A. (20-30 m2) - SRO","stk.",10,0,0,0,0,0]
["Installationer, Miljøklasse B. (7-20 m2) - Mek/EL","stk.",20,0,0,0,0,0]
["Installationer, Miljøklasse B. (7-20 m2) - SRO","stk.",10,0,0,0,0,0]
["Installationer, Miljøklasse B. (20-30 m2) - Mek/EL","stk.",20,0,0,0,0,0]
["Installationer, Miljøklasse B. (20-30 m2) - SRO","stk.",10,0,0,0,0,0]
["Overbygning","stk.",75,0,0,0,0,0]
["Overløbsbygværker - By",null,null,null,null,null,"",""]
["Kælder (< 7 m2) ","stk.",75,7,7,7,0,0]
["Kælder (7 - 20 m2) ","m2",75,15,15,15,0,0]
["Kælder (20 - 30 m2)","m2",75,0,0,0,0,0]
["Installationer (mindre end 7 m2)","stk.",20,0,0,0,0,0]
["Installationer, Miljøklasse A. (7-20 m2) - Mek/EL","stk.",20,0,0,0,0,0]
["Installationer, Miljøklasse A. (7-20 m2) - SRO","stk.",10,0,0,0,0,0]
["Installationer, Miljøklasse A. (20-30 m2) - Mek/EL","stk.",20,0,0,0,0,0]
["Installationer, Miljøklasse A. (20-30 m2) - SRO","stk.",10,0,0,0,0,0]
["Installationer, Miljøklasse B. (7-20 m2) - Mek/EL","stk.",20,0,0,0,0,0]
["Installationer, Miljøklasse B. (7-20 m2) - SRO","stk.",10,0,0,0,0,0]
["Installationer, Miljøklasse B. (20-30 m2) - Mek/EL","stk.",20,0,0,0,0,0]
["Installationer, Miljøklasse B. (20-30 m2) - SRO","stk.",10,0,0,0,0,0]
["Overbygning","stk.",75,0,0,0,0,0]
["Overløbsbygværker - City",null,null,null,null,null,"",""]
["Kælder (< 7 m2) ","stk.",75,0,0,0,0,0]
["Kælder (7 - 20 m2) ","m2",75,0,0,0,0,0]
["Kælder (20 - 30 m2)","m2",75,0,0,0,0,0]
["Installationer (mindre end 7 m2)","stk.",20,0,0,0,0,0]
["Installationer, Miljøklasse A. (7-20 m2) - Mek/EL","stk.",20,0,0,0,0,0]
["Installationer, Miljøklasse A. (7-20 m2) - SRO","stk.",10,0,0,0,0,0]
["Installationer, Miljøklasse A. (20-30 m2) - Mek/EL","stk.",20,0,0,0,0,0]
["Installationer, Miljøklasse A. (20-30 m2) - SRO","stk.",10,0,0,0,0,0]
["Installationer, Miljøklasse B. (7-20 m2) - Mek/EL","stk.",20,0,0,0,0,0]
["Installationer, Miljøklasse B. (7-20 m2) - SRO","stk.",10,0,0,0,0,0]
["Installationer, Miljøklasse B. (20-30 m2) - Mek/EL","stk.",20,0,0,0,0,0]
["Installationer, Miljøklasse B. (20-30 m2) - SRO","stk.",10,0,0,0,0,0]
["Overbygning (efter beliggenhed) ","stk.",75,0,0,0,0,0]
["Overløbsbygværker - Indre city",null,null,null,null,null,"",""]
["Kælder (< 7 m2) ","stk.",75,0,0,0,0,0]
["Kælder (7 - 20 m2) ","m2",75,0,0,0,0,0]
["Kælder (20 - 30 m2)","m2",75,0,0,0,0,0]
["Installationer (mindre end 7 m2)","stk.",20,0,0,0,0,0]
["Installationer, Miljøklasse A. (7-20 m2) - Mek/EL","stk.",20,0,0,0,0,0]
["Installationer, Miljøklasse A. (7-20 m2) - SRO","stk.",10,0,0,0,0,0]
["Installationer, Miljøklasse A. (20-30 m2) - Mek/EL","stk.",20,0,0,0,0,0]
["Installationer, Miljøklasse A. (20-30 m2) - SRO","stk.",10,0,0,0,0,0]
["Installationer, Miljøklasse B. (7-20 m2) - Mek/EL","stk.",20,0,0,0,0,0]
["Installationer, Miljøklasse B. (7-20 m2) - SRO","stk.",10,0,0,0,0,0]
["Installationer, Miljøklasse B. (20-30 m2) - Mek/EL","stk.",20,0,0,0,0,0]
["Installationer, Miljøklasse B. (20-30 m2) - SRO","stk.",10,0,0,0,0,0]
["Overbygning","stk.",75,0,0,0,0,0]
["Forsinkelsesbassiner - Land",null,null,null,null,null,"",""]
["Forsinkelsesbassiner, lukkede uden automatisk rensning og SRO (mindre end 1.000 m3)","m³",50,0,0,0,0,0]
["Forsinkelsesbassiner, lukkede med automatisk rensning og SRO (mindre end 1.000 m3) - Konstruktioner","m³",75,0,0,0,0,0]
["Forsinkelsesbassiner, lukkede med automatisk rensning og SRO (mindre end 1.000 m3) - Mek/EL","m³",20,0,0,0,0,0]
["Forsinkelsesbassiner, lukkede med automatisk rensning og SRO (mindre end 1.000 m3) - SRO ","m³",10,0,0,0,0,0]
["Forsinkelsesbassiner, lukkede (1.000-4.000 m3) - Konstruktioner","m³",75,0,0,0,0,0]
["Forsinkelsesbassiner, lukkede (1.000-4.000 m3) - Mek/EL","m³",20,0,0,0,0,0]
["Forsinkelsesbassiner, lukkede (1.000-4.000 m3) - SRO","m³",10,0,0,0,0,0]
["Forsinkelsesbassiner, lukkede (4.000-10.000 m3) - Konstruktioner","m³",75,4698,4698,4698,0,0]
["Forsinkelsesbassiner, lukkede (4.000-10.000 m3) - Mek/EL","m³",20,4698,4698,4698,0,0]
["Forsinkelsesbassiner, lukkede (4.000-10.000 m3) - SRO","m³",10,4698,4698,4698,0,0]
["Forsinkelsesbassiner, lukkede (større end 10.000 m3) - Konstruktioner","m³",75,0,0,0,0,0]
["Forsinkelsesbassiner, lukkede (større end 10.000 m3) - Mek/EL","m³",20,0,0,0,{"$f":"IF(D259=\"\",IF(E259>0,\"Ny data\",IF(E259=\"\",\"\",0)),IF(D259=0,IF(E259=0,0,\"Ny data\"),(E259-D259)/D259))","v":0},{"$f":"IF(E259=\"\",IF(F259>0,\"Ny data\",IF(F259=\"\",\"\",0)),IF(E259=0,IF(F259=0,0,\"Ny data\"),(F259-E259)/E259))","v":0}]
["Forsinkelsesbassiner, lukkede (større end 10.000 m3) - SRO","m³",10,0,0,0,0,0]
["Forsinkelsesbassiner - By",null,null,null,null,null,"",""]
["Forsinkelsesbassiner, lukkede uden automatisk rensning og SRO (mindre end 1.000 m3)","m³",50,0,0,0,0,0]
["Forsinkelsesbassiner, lukkede med automatisk rensning og SRO (mindre end 1.000 m3) - Konstruktioner","m³",75,0,0,0,0,0]
["Forsinkelsesbassiner, lukkede med automatisk rensning og SRO (mindre end 1.000 m3) - Mek/EL","m³",20,0,0,0,0,0]
["Forsinkelsesbassiner, lukkede med automatisk rensning og SRO (mindre end 1.000 m3) - SRO ","m³",10,0,0,0,0,0]
["Forsinkelsesbassiner, lukkede (1.000-4.000 m3) - Konstruktioner","m³",75,0,0,0,0,0]
["Forsinkelsesbassiner, lukkede (1.000-4.000 m3) - Mek/EL","m³",20,0,0,0,0,0]
["Forsinkelsesbassiner, lukkede (1.000-4.000 m3) - SRO","m³",10,0,0,0,0,0]
["Forsinkelsesbassiner, lukkede (4.000-10.000 m3) - Konstruktioner","m³",75,9829,9829,9829,0,0]
["Forsinkelsesbassiner, lukkede (4.000-10.000 m3) - Mek/EL","m³",20,9829,9829,9829,0,0]
["Forsinkelsesbassiner, lukkede (4.000-10.000 m3) - SRO","m³",10,9829,9829,9829,0,0]
["Forsinkelsesbassiner, lukkede (større end 10.000 m3) - Konstruktioner","m³",75,0,0,0,0,0]
["Forsinkelsesbassiner, lukkede (større end 10.000 m3) - Mek/EL","m³",20,0,0,0,0,0]
["Forsinkelsesbassiner, lukkede (større end 10.000 m3) - SRO","m³",10,0,0,0,0,0]
["Forsinkelsesbassiner - City",null,null,null,null,null,"",""]
["Forsinkelsesbassiner, lukkede uden automatisk rensning og SRO (mindre end 1.000 m3)","m³",50,0,0,0,0,0]
["Forsinkelsesbassiner, lukkede med automatisk rensning og SRO (mindre end 1.000 m3) - Konstruktioner","m³",75,0,0,0,0,0]
["Forsinkelsesbassiner, lukkede med automatisk rensning og SRO (mindre end 1.000 m3) - Mek/EL","m³",20,0,0,0,0,0]
["Forsinkelsesbassiner, lukkede med automatisk rensning og SRO (mindre end 1.000 m3) - SRO ","m³",10,0,0,0,0,0]
["Forsinkelsesbassiner, lukkede (1.000-4.000 m3) - Konstruktioner","m³",75,0,0,0,0,0]
["Forsinkelsesbassiner, lukkede (1.000-4.000 m3) - Mek/EL","m³",20,0,0,0,0,0]
["Forsinkelsesbassiner, lukkede (1.000-4.000 m3) - SRO","m³",10,0,0,0,0,0]
["Forsinkelsesbassiner, lukkede (4.000-10.000 m3) - Konstruktioner","m³",75,0,0,0,0,0]
["Forsinkelsesbassiner, lukkede (4.000-10.000 m3) - Mek/EL","m³",20,0,0,0,0,0]
["Forsinkelsesbassiner, lukkede (4.000-10.000 m3) - SRO","m³",10,0,0,0,0,0]
["Forsinkelsesbassiner, lukkede (større end 10.000 m3) - Konstruktioner","m³",75,0,0,0,0,0]
["Forsinkelsesbassiner, lukkede (større end 10.000 m3) - Mek/EL","m³",20,0,0,0,0,0]
["Forsinkelsesbassiner, lukkede (større end 10.000 m3) - SRO","m³",10,0,0,0,0,0]
["Forsinkelsesbassiner - Indre city",null,null,null,null,null,"",""]
["Forsinkelsesbassiner, lukkede uden automatisk rensning og SRO (mindre end 1.000 m3)","m³",50,0,0,0,0,0]
["Forsinkelsesbassiner, lukkede med automatisk rensning og SRO (mindre end 1.000 m3) - Konstruktioner","m³",75,0,0,0,0,0]
["Forsinkelsesbassiner, lukkede med automatisk rensning og SRO (mindre end 1.000 m3) - Mek/EL","m³",20,0,0,0,0,0]
["Forsinkelsesbassiner, lukkede med automatisk rensning og SRO (mindre end 1.000 m3) - SRO ","m³",10,0,0,0,0,0]
["Forsinkelsesbassiner, lukkede (1.000-4.000 m3) - Konstruktioner","m³",75,0,0,0,0,0]
["Forsinkelsesbassiner, lukkede (1.000-4.000 m3) - Mek/EL","m³",20,0,0,0,0,0]
["Forsinkelsesbassiner, lukkede (1.000-4.000 m3) - SRO","m³",10,0,0,0,0,0]
["Forsinkelsesbassiner, lukkede (4.000-10.000 m3) - Konstruktioner","m³",75,0,0,0,0,0]
["Forsinkelsesbassiner, lukkede (4.000-10.000 m3) - Mek/EL","m³",20,0,0,0,0,0]
["Forsinkelsesbassiner, lukkede (4.000-10.000 m3) - SRO","m³",10,0,0,0,0,0]
["Forsinkelsesbassiner, lukkede (større end 10.000 m3) - Konstruktioner","m³",75,0,0,0,0,0]
["Forsinkelsesbassiner, lukkede (større end 10.000 m3) - Mek/EL","m³",20,0,0,0,0,0]
["Forsinkelsesbassiner, lukkede (større end 10.000 m3) - SRO","m³",10,0,0,0,0,0]
["Sparebassin/Laguner/Jordbassiner - Land",null,null,null,null,null,"",""]
["Jordbassin Klasse A og B","m³",50,0,0,0,0,0]
["Indløb-/udløbsarrangement","stk.",75,0,0,0,0,0]
["Andre bygninger (tekniske installationer, målere mv.)","m2",75,0,0,0,0,0]
["Sparebassin/Laguner/Jordbassiner - By",null,null,null,null,null,"",""]
["Jordbassin Klasse A og B","m³",50,49512,49512,49512,0,0]
["Indløb-/udløbsarrangement","stk.",75,3,3,3,0,0]
["Andre bygninger (tekniske installationer, målere mv.)","m2",75,0,0,0,0,0]
["Sparebassin/Laguner/Jordbassiner - City",null,null,null,null,null,"",""]
["Jordbassin Klasse A og B","m³",50,0,0,0,0,0]
["Indløb-/udløbsarrangement","stk.",75,0,0,0,0,0]
["Andre bygninger (tekniske installationer, målere mv.)","m2",75,0,0,0,0,0]
["Sparebassin/Laguner/Jordbassiner - Indre city",null,null,null,null,null,"",""]
["Jordbassin Klasse A og B","m³",50,0,0,0,0,0]
["Indløb-/udløbsarrangement","stk.",75,0,0,0,0,0]
["Andre bygninger (tekniske installationer, målere mv.)","m2",75,0,0,0,0,0]

{"sheet":"Fællesfunktionsanlæg","index":2,"n_rows":13,"n_cols":9,"rows_kept":13,"cut":false,"hidden":false,"merged":[[0,0,1,0],[0,1,1,1],[0,2,1,2],[0,3,1,3],[0,8,1,8],[0,4,1,4],[0,5,1,5],[0,6,1,6],[0,7,1,7]]}
["Fællesfunktionsanlæg","Enhed","Standard-levetid","Samlet mængde per 31/12-2022","Samlet mængde per 31/12-2023","Samlet mængde per 31/12-2024","Afvigelse 2022-2023","Afvigelse 2023-2024","Bemærkninger"]
[]
["Andre",null,null,null,null,null,{"$f":"IF(D3=\"\",IF(E3>0,\"Ny data\",IF(E3=\"\",\"\",0)),IF(D3=0,IF(E3=0,0,\"Ny data\"),(E3-D3)/D3))","v":""},{"$f":"IF(E3=\"\",IF(F3>0,\"Ny data\",IF(F3=\"\",\"\",0)),IF(E3=0,IF(F3=0,0,\"Ny data\"),(F3-E3)/E3))","v":""}]
["Administrationbygninger","m2",75,780,780,780,0,0]
["Arbejdsplads og kontor","stk.",5,19,19,19,0,0]
["Køretøjer, personbil","stk.",5,0,0,0,0,0]
["Køretøjer, små lastvogne (< 3.500 kg.)","stk.",5,2,2,2,0,0]
["Køretøjer, store lastvogne (> 3.500 kg.)","stk.",5,1,1,1,0,0]
["Køretøjer, entreprenørmaskiner","stk.",5,0,0,0,0,0]
["Slamsugere","stk.",5,1,1,1,0,0]
["Værksteder, garager","m2",75,580,580,580,0,0]
["Solcelleanlæg eksl. Inverter","kWp",25,148,148,148,0,0]
["Inverter til solcelleanlæg","kWp",10,50,50,50,0,0]